fUSD/lending_fUSD_20250405
["ID","MTS","AMOUNT","RATE_DAILY","PERIOD"]
[357203548,1743892243648,-382.47802048,0.00031231,2]
[357203549,1743892243657,-500.0,0.00031231,2]
[357203550,1743892243667,-500.0,0.00031231,2]
[357203551,1743892243676,-500.0,0.00031231,2]
[357203552,1743892243685,-334.09845945,0.00031231,2]
[357203553,1743892243694,-500.0,0.00031231,2]
[357203555,1743892243703,-279.82297442,0.00031231,2]
[357203557,1743892243713,-500.0,0.00031231,2]
[357203558,1743892243722,-500.0,0.00031231,2]
[357203559,1743892243731,-500.0,0.00031231,2]
[357203560,1743892243740,-500.0,0.00031231,2]
[357203561,1743892243750,-500.0,0.00031231,2]
[357203562,1743892243759,-500.0,0.00031231,2]
[357203563,1743892243768,-500.0,0.00031231,2]
[357203565,1743892243777,-500.0,0.00031231,2]
[357203566,1743892243786,-165.93975288,0.00031231,2]
[357203567,1743892243795,-500.0,0.00031231,2]
[357203568,1743892243804,-500.0,0.00031231,2]
[357203569,1743892243813,-500.0,0.00031231,2]
[357203570,1743892243822,-500.0,0.00031231,2]
[357203572,1743892243831,-575.05994405,0.00031231,2]
[357203574,1743892243841,-500.0,0.00031231,2]
[357203576,1743892243850,-556.98590287,0.00031231,2]
[357203578,1743892243859,-500.0,0.00031231,2]
[357203580,1743892243868,-500.0,0.00031231,2]
[357203582,1743892243880,-500.0,0.00031231,2]
[357203584,1743892243890,-500.0,0.00031231,2]
[357203586,1743892243899,-500.0,0.00031231,2]
[357203587,1743892243909,-410.82461319,0.00031231,2]
[357203588,1743892243918,-500.0,0.00031231,2]
[357203589,1743892243927,-500.0,0.00031231,2]
[357203590,1743892243936,-500.0,0.00031231,2]
[357203591,1743892243945,-500.0,0.00031231,2]
[357203592,1743892243954,-500.0,0.00031231,2]
[357203593,1743892243964,-561.9250399,0.00031231,2]
[357203594,1743892243973,-572.79883715,0.00031231,2]
[357203595,1743892243982,-500.0,0.00031231,2]
[357203596,1743892243991,-498.22353115,0.00031231,2]
[357203597,1743892244000,-528.51735298,0.00031231,2]
[357203598,1743892244010,-500.0,0.00031231,2]
[357203599,1743892244019,-500.0,0.00031231,2]
[357203600,1743892244028,-570.62525489,0.00031231,2]
[357203601,1743892244037,-521.86833224,0.00031231,2]
[357203602,1743892244046,-581.96342767,0.00031231,2]
[357203603,1743892244055,-500.0,0.00031231,2]
[357203604,1743892244065,-500.0,0.00031231,2]
[357203605,1743892244074,-234.83323864,0.00031231,2]
[357203606,1743892244083,-500.0,0.00031231,2]
[357203607,1743892244092,-561.65305819,0.00031231,2]
[357203608,1743892244101,-500.0,0.00031231,2]
[357203609,1743892244110,-500.0,0.00031231,2]
[357203610,1743892244119,-500.99667471,0.00031231,2]
[357203611,1743892244129,-503.61324304,0.00031231,2]
[357203612,1743892244138,-517.90870353,0.00031231,2]
[357203613,1743892244147,-605.16477139,0.00031231,2]
[357203614,1743892244156,-500.0,0.00031231,2]
[357203615,1743892244165,-500.0,0.00031231,2]
[357203616,1743892244174,-500.0,0.00031231,2]
[357203617,1743892244183,-500.0,0.00031231,2]
[357203618,1743892244192,-500.0,0.00031231,2]
[357203619,1743892244202,-500.0,0.00031231,2]
[357203620,1743892244211,-500.0,0.00031231,2]
[357203621,1743892244219,-500.0,0.00031231,2]
[357203622,1743892244229,-500.0,0.00031231,2]
[357203623,1743892244238,-500.0,0.00031231,2]
[357203624,1743892244248,-500.0,0.00031231,2]
[357203625,1743892244257,-514.00498467,0.00031231,2]
[357203626,1743892244267,-500.0,0.00031231,2]
[357203627,1743892244276,-524.41066558,0.00031231,2]
[357203628,1743892244285,-500.0,0.00031231,2]
[357203629,1743892244295,-500.0,0.00031231,2]
[357203630,1743892244304,-500.0,0.00031231,2]
[357203631,1743892244314,-500.0,0.00031231,2]
[357203632,1743892244323,-500.0,0.00031231,2]
[357203633,1743892244333,-500.0,0.00031231,2]
[357203634,1743892244342,-500.0,0.00031231,2]
[357203635,1743892244352,-545.25900712,0.00031231,2]
[357203636,1743892244361,-632.64546975,0.00031231,2]
[357203637,1743892244370,-500.0,0.00031231,2]
[357203638,1743892244379,-524.7388339,0.00031231,2]
[357203639,1743892244389,-553.55508174,0.00031231,2]
[357203640,1743892244398,-234.89760435,0.00031231,2]
[357203641,1743892244408,-500.0,0.00031231,2]
[357203642,1743892244417,-500.0,0.00031231,2]
[357203643,1743892244426,-500.0,0.00031231,2]
[357203644,1743892244436,-500.0,0.00031231,2]
[357203645,1743892244446,-584.28188745,0.00031231,2]
[357203646,1743892244456,-500.0,0.00031231,2]
[357203647,1743892244466,-518.5123681,0.00031231,2]
[357203648,1743892244475,-474.08121199,0.00031231,2]
[357203649,1743892244484,-500.0,0.00031231,2]
[357203650,1743892244495,-529.14735315,0.00031231,2]
[357203651,1743892244506,-500.0,0.00031231,2]
[357203652,1743892244516,-500.0,0.00031231,2]
[357203653,1743892244527,-500.0,0.00031231,2]
[357203654,1743892244537,-512.51778479,0.00031231,2]
[357203655,1743892244547,-534.70375765,0.00031231,2]
[357203656,1743892244557,-500.0,0.00031231,2]
[357203657,1743892244571,-7902.48,0.00031231,2]
[357203658,1743892244580,-500.0,0.00031231,2]
[357203659,1743892244589,-500.0,0.00031231,2]
[357203660,1743892244599,-500.0,0.00031231,2]
[357203661,1743892244609,-500.0,0.00031231,2]
[357203662,1743892244618,-516.9518107,0.00031231,2]
[357203663,1743892244626,-564.44,0.00031231,2]
[357203664,1743892244635,-500.0,0.00031231,2]
[357203665,1743892244645,-500.0,0.00031231,2]
[357203666,1743892244654,-500.0,0.00031231,2]
[357203667,1743892244663,-516.63235915,0.00031231,2]
[357203668,1743892244673,-531.31566461,0.00031231,2]
[357203669,1743892244682,-500.0,0.00031231,2]
[357203670,1743892244691,-530.85847615,0.00031231,2]
[357203671,1743892244700,-500.0,0.00031231,2]
[357203672,1743892244710,-500.0,0.00031231,2]
[357203673,1743892244720,-1136.07,0.00031231,2]
[357203674,1743892244729,-516.18247101,0.00031231,2]
[357203675,1743892244739,-537.17341126,0.00031231,2]
[357203676,1743892244748,-500.0,0.00031231,2]
[357203677,1743892244759,-500.0,0.00031231,2]
[357203678,1743892244768,-500.03,0.00031231,2]
[357203679,1743892244777,-500.0,0.00031231,2]
[357203680,1743892244787,-500.0,0.00031231,2]
[357203681,1743892244797,-500.0,0.00031231,2]
[357203682,1743892244806,-500.0,0.00031231,2]
[357203683,1743892244815,-500.0,0.00031231,2]
[357203684,1743892244824,-516.01853022,0.00031231,2]
[357203685,1743892244833,-524.53663942,0.00031231,2]
[357203686,1743892244842,-500.0,0.00031231,2]
[357203687,1743892244851,-549.53132082,0.00031231,2]
[357203688,1743892244860,-500.0,0.00031231,2]
[357203689,1743892244869,-500.0,0.00031231,2]
[357203690,1743892244878,-500.0,0.00031231,2]
[357203691,1743892244887,-500.0,0.00031231,2]
[357203692,1743892244896,-5132.98,0.00031231,2]
[357203693,1743892244905,-500.0,0.00031231,2]
[357203694,1743892244915,-500.0,0.00031231,2]
[357203695,1743892244925,-512.14231752,0.00031231,2]
[357203696,1743892244935,-500.0,0.00031231,2]
[357203697,1743892244945,-509.26794981,0.00031231,2]
[357203698,1743892244955,-500.0,0.00031231,2]
[357203699,1743892244965,-2053.9,0.00031231,2]
[357203700,1743892244974,-500.0,0.00031231,2]
[357203701,1743892244984,-532.33083839,0.00031231,2]
[357203702,1743892244995,-500.0,0.00031231,2]
[357203703,1743892245004,-500.0,0.00031231,2]
[357203704,1743892245013,-756.46,0.00031231,2]
[357203705,1743892245022,-500.0,0.00031231,2]
[357203706,1743892245031,-500.0,0.00031231,2]
[357203707,1743892245040,-724.39,0.00031231,2]
[357203708,1743892245049,-500.0,0.00031231,2]
[357203709,1743892245058,-500.0,0.00031231,2]
[357203710,1743892245067,-500.0,0.00031231,2]
[357203711,1743892245076,-500.0,0.00031231,2]
[357203712,1743892245086,-500.0,0.00031231,2]
[357203713,1743892245095,-9863.12,0.00031231,2]
[357203714,1743892245104,-500.0,0.00031231,2]
[357203715,1743892245114,-500.0,0.00031231,2]
[357203716,1743892245123,-500.0,0.00031231,2]
[357203717,1743892245132,-500.0,0.00031231,2]
[357203718,1743892245141,-500.0,0.00031231,2]
[357203719,1743892245151,-500.0,0.00031231,2]
[357203720,1743892245161,-500.0,0.00031231,2]
[357203721,1743892245170,-500.0,0.00031231,2]
[357203722,1743892245179,-500.0,0.00031231,2]
[357203723,1743892245188,-500.0,0.00031231,2]
[357203724,1743892245197,-500.0,0.00031231,2]
[357203725,1743892245206,-500.0,0.00031231,2]
[357203726,1743892245216,-500.0,0.00031231,2]
[357203727,1743892245225,-1217.37,0.00031231,2]
[357203728,1743892245234,-500.0,0.00031231,2]
[357203729,1743892245243,-500.0,0.00031231,2]
[357203730,1743892245252,-500.0,0.00031231,2]
[357203731,1743892245261,-1355.77,0.00031231,2]
[357203732,1743892245270,-500.0,0.00031231,2]
[357203733,1743892245279,-1000.0,0.00031231,2]
[357203734,1743892245288,-532.32590538,0.00031231,2]
[357203735,1743892245421,-500.0,0.00031231,2]
[357203736,1743892245431,-500.0,0.00031231,2]
[357203737,1743892245441,-500.0,0.00031231,2]
[357203738,1743892245454,-538.12514263,0.00031231,2]
[357203739,1743892245463,-500.0,0.00031231,2]
[357203740,1743892245475,-500.0,0.00031231,2]
[357203741,1743892245486,-500.0,0.00031231,2]
[357203742,1743892245497,-543.90585606,0.00031231,2]
[357203743,1743892245506,-500.0,0.00031231,2]
[357203744,1743892245517,-500.0,0.00031231,2]
[357203745,1743892245527,-500.0,0.00031231,2]
[357203746,1743892245537,-500.0,0.00031232,2]
[357203747,1743892245546,-446.38,0.00031232,2]
[357203748,1743892245556,-500.0,0.00031232,2]
[357203749,1743892245569,-668.27,0.00031232,2]
[357203750,1743892245578,-683.11,0.00031232,2]
[357203751,1743892245588,-603.34734769,0.00031232,2]
[357203752,1743892245597,-500.0,0.00031232,2]
[357203753,1743892245607,-500.0,0.00031232,2]
[357203754,1743892245616,-500.0,0.00031232,2]
[357203755,1743892245626,-500.0,0.00031232,2]
[357203756,1743892245635,-4035.3,0.00031232,2]
[357203757,1743892245646,-500.0,0.00031232,2]
[357203758,1743892245655,-500.0,0.00031232,2]
[357203759,1743892245665,-500.0,0.00031232,2]
[357203760,1743892245674,-501.69703881,0.00031232,2]
[357203761,1743892245684,-217.13231893,0.00031232,2]
[357203762,1743892245694,-500.0,0.00031232,2]
[357203763,1743892245703,-500.0,0.00031232,2]
[357203764,1743892245713,-500.0,0.00031232,2]
[357203765,1743892245723,-492.15897022,0.00031232,2]
[357203766,1743892245733,-500.0,0.00031232,2]
[357203767,1743892245742,-500.0,0.00031232,2]
[357203768,1743892245752,-500.0,0.00031232,2]
[357203769,1743892245762,-5728.17713194,0.00031359,2]
[357203770,1743892245771,-1382.768,0.00031405,2]
[357203771,1743892245780,-214.1626,0.00031406,2]
[357203772,1743892245789,-500.0,0.00031504,2]
[357203773,1743892245798,-500.0,0.00031504,2]
[357203774,1743892245807,-500.0,0.00031504,2]
[357203775,1743892245816,-200.0,0.00031504,2]
[357203776,1743892245824,-500.0,0.00031504,2]
[357203777,1743892245833,-500.0,0.00031504,2]
[357203778,1743892245842,-500.0,0.00031504,2]
[357203779,1743892245851,-552.42487315,0.00031504,2]
[357203780,1743892245861,-500.0,0.00031504,2]
[357203781,1743892245870,-530.30115626,0.00031504,2]
[357203782,1743892245879,-500.0,0.00031504,2]
[357203783,1743892245888,-342.30912079,0.00031504,2]
[357203784,1743892245897,-500.0,0.00031504,2]
[357203785,1743892245906,-509.4031329,0.00031504,2]
[357203786,1743892245916,-527.9328838,0.00031504,2]
[357203787,1743892245926,-500.0,0.00031504,2]
[357203788,1743892245935,-500.0,0.00031504,2]
[357203789,1743892245945,-500.0,0.00031504,2]
[357203790,1743892245955,-545.11059284,0.00031504,2]
[357203791,1743892245966,-487.51364946,0.00031504,2]
[357203792,1743892245976,-500.0,0.00031504,2]
[357203793,1743892245986,-500.0,0.00031504,2]
[357203794,1743892245996,-500.0,0.00031504,2]
[357203795,1743892246006,-165.8073661,0.00031504,2]
[357203796,1743892246015,-500.0,0.00031504,2]
[357203797,1743892246025,-375.94746535,0.00031504,2]
[357203798,1743892246034,-500.0,0.00031504,2]
[357203799,1743892246043,-500.0,0.00031504,2]
[357203800,1743892246052,-632.32206233,0.00031504,2]
[357203801,1743892246062,-593.4091937,0.00031504,2]
[357203803,1743892246071,-500.0,0.00031504,2]
[357203804,1743892246081,-500.0,0.00031504,2]
[357203806,1743892246090,-619.60282413,0.00031504,2]
[357203807,1743892246099,-500.0,0.00031504,2]
[357203808,1743892246108,-500.0,0.00031504,2]
[357203809,1743892246118,-500.0,0.00031504,2]
[357203810,1743892246127,-500.0,0.00031504,2]
[357203811,1743892246137,-607.07330459,0.00031504,2]
[357203813,1743892246146,-500.0,0.00031504,2]
[357203815,1743892246155,-500.0,0.00031504,2]
[357203817,1743892246164,-417.10760886,0.00031504,2]
[357203819,1743892246173,-500.0,0.00031504,2]
[357203820,1743892246183,-500.0,0.00031504,2]
[357203823,1743892246193,-500.0,0.00031504,2]
[357203824,1743892246202,-641.38,0.00031504,2]
[357203826,1743892246211,-2000.0,0.00031504,2]
[357203828,1743892246222,-500.0,0.00031504,2]
[357203831,1743892246232,-235.6393166,0.00031504,2]
[357203833,1743892246242,-500.0,0.00031504,2]
[357203834,1743892246251,-500.0,0.00031504,2]
[357203836,1743892246261,-500.0,0.00031504,2]
[357203837,1743892246270,-500.0,0.00031504,2]
[357203838,1743892246280,-500.0,0.00031504,2]
[357203839,1743892246289,-500.0,0.00031504,2]
[357203840,1743892246298,-500.0,0.00031504,2]
[357203841,1743892246307,-976.66,0.00031504,2]
[357203842,1743892246317,-500.0,0.00031504,2]
[357203844,1743892246326,-500.0,0.00031504,2]
[357203846,1743892246336,-500.0,0.00031504,2]
[357203848,1743892246345,-500.0,0.00031504,2]
[357203849,1743892246355,-500.0,0.00031504,2]
[357203850,1743892246364,-500.0,0.00031504,2]
[357203851,1743892246373,-510.55572545,0.00031504,2]
[357203852,1743892246383,-520.92412871,0.00031504,2]
[357203853,1743892246392,-518.65407796,0.00031504,2]
[357203854,1743892246401,-507.01204495,0.00031504,2]
[357203855,1743892246410,-521.3516349,0.00031504,2]
[357203856,1743892246420,-515.2485344,0.00031504,2]
[357203857,1743892246429,-522.46659155,0.00031504,2]
[357203858,1743892246438,-511.11062083,0.00031504,2]
[357203859,1743892246447,-518.98363857,0.00031504,2]
[357203860,1743892246457,-520.10098081,0.00031504,2]
[357203861,1743892246466,-337.65257452,0.00031504,2]
[357203862,1743892246475,-521.68903746,0.00031504,2]
[357203863,1743892246484,-519.87175156,0.00031504,2]
[357203864,1743892246494,-500.0,0.00031504,2]
[357203865,1743892246504,-522.58652662,0.00031504,2]
[357203866,1743892246514,-515.1174909,0.00031504,2]
[357203867,1743892246524,-503.77912055,0.00031504,2]
[357203868,1743892246534,-503.80937387,0.00031504,2]
[357203869,1743892246543,-494.0,0.00031504,2]
[357203870,1743892246553,-510.0486867,0.00031504,2]
[357203871,1743892246565,-506.69847869,0.00031504,2]
[357203872,1743892246575,-513.19253225,0.00031504,2]
[357203873,1743892246585,-508.81735139,0.00031504,2]
[357203874,1743892246594,-528.67203429,0.00031504,2]
[357203875,1743892246604,-525.46999234,0.00031504,2]
[357203876,1743892246614,-509.24998448,0.00031504,2]
[357203877,1743892246623,-500.0,0.00031504,2]
[357203878,1743892246632,-517.77717569,0.00031504,2]
[357203879,1743892246643,-508.45618544,0.00031504,2]
[357203880,1743892246652,-500.0,0.00031504,2]
[357203881,1743892246661,-500.0,0.00031504,2]
[357203882,1743892246671,-500.0,0.00031504,2]
[357203883,1743892246680,-521.34806053,0.00031504,2]
[357203884,1743892246690,-513.52402015,0.00031504,2]
[357203885,1743892246699,-500.0,0.00031504,2]
[357203886,1743892246708,-513.06634644,0.00031504,2]
[357203887,1743892246718,-500.0,0.00031504,2]
[357203888,1743892246728,-500.0,0.00031504,2]
[357203890,1743892246737,-508.16612048,0.00031504,2]
[357203892,1743892246746,-266.35560013,0.00031504,2]
[357203893,1743892246755,-520.85745833,0.00031504,2]
[357203894,1743892246764,-500.0,0.00031504,2]
[357203895,1743892246773,-510.5081526,0.00031504,2]
[357203896,1743892246782,-625.16203822,0.00031504,2]
[357203897,1743892246792,-507.21757606,0.00031504,2]
[357203898,1743892246801,-527.6968441,0.00031504,2]
[357203900,1743892246811,-500.0,0.00031504,2]
[357203902,1743892246820,-529.69339741,0.00031504,2]
[357203904,1743892246830,-512.10120459,0.00031504,2]
[357203906,1743892246839,-500.0,0.00031504,2]
[357203907,1743892246848,-510.35941763,0.00031504,2]
[357203908,1743892246858,-508.24022279,0.00031504,2]
[357203909,1743892246867,-500.0,0.00031504,2]
[357203910,1743892246876,-500.0,0.00031504,2]
[357203911,1743892246888,-502.34793621,0.00031504,2]
[357203912,1743892246901,-516.5036726,0.00031504,2]
[357203913,1743892246910,-511.56769437,0.00031504,2]
[357203914,1743892246920,-500.0,0.00031504,2]
[357203915,1743892246930,-512.3323488,0.00031504,2]
[357203916,1743892246940,-517.95936593,0.00031504,2]
[357203917,1743892246950,-541.07274743,0.00031504,2]
[357203918,1743892246961,-528.91794588,0.00031504,2]
[357203919,1743892246971,-519.89918623,0.00031504,2]
[357203920,1743892246981,-503.22547605,0.00031504,2]
[357203921,1743892246990,-516.91437585,0.00031504,2]
[357203922,1743892247000,-153.68996381,0.00031504,2]
[357203923,1743892247010,-500.0,0.00031504,2]
[357203924,1743892247020,-511.63051385,0.00031504,2]
[357203925,1743892247032,-5118.78448625,0.00031504,2]
[357203926,1743892247041,-549.57163666,0.00031504,2]
[357203927,1743892247051,-555.91421778,0.00031504,2]
[357203928,1743892247060,-526.78276193,0.00031504,2]
[357203929,1743892247069,-508.37852574,0.00031504,2]
[357203930,1743892247079,-525.84150661,0.00031504,2]
[357203931,1743892247088,-419.91186277,0.00031504,2]
[357203932,1743892247097,-507.81346978,0.00031504,2]
[357203933,1743892247107,-527.63993777,0.00031504,2]
[357203934,1743892247117,-529.7596559,0.00031504,2]
[357203935,1743892247126,-519.49296212,0.00031504,2]
[357203936,1743892247136,-509.41021025,0.00031504,2]
[357203937,1743892247145,-508.28439278,0.00031504,2]
[357203938,1743892247154,-644.02114723,0.00031504,2]
[357203939,1743892247163,-519.62145628,0.00031504,2]
[357203940,1743892247173,-522.12636492,0.00031504,2]
[357203941,1743892247183,-510.65750852,0.00031504,2]
[357203942,1743892247192,-536.71142715,0.00031504,2]
[357203943,1743892247202,-513.21988476,0.00031504,2]
[357203944,1743892247212,-508.08011087,0.00031504,2]
[357203945,1743892247221,-500.0,0.00031504,2]
[357203946,1743892247231,-575.75501639,0.00031504,2]
[357203947,1743892247240,-500.0,0.00031504,2]
[357203948,1743892247250,-520.82207226,0.00031504,2]
[357203949,1743892247259,-500.0,0.00031504,2]
[357203950,1743892247268,-569.45218777,0.00031504,2]
[357203951,1743892247278,-510.5200197,0.00031504,2]
[357203952,1743892247287,-528.25147061,0.00031504,2]
[357203953,1743892247296,-500.0,0.00031504,2]
[357203954,1743892247305,-507.3694766,0.00031504,2]
[357203955,1743892247315,-518.8021181,0.00031504,2]
[357203956,1743892247324,-514.65431111,0.00031504,2]
[357203957,1743892247334,-500.0,0.00031504,2]
[357203958,1743892247343,-526.95907581,0.00031504,2]
[357203959,1743892247356,-500.0,0.00031504,2]
[357203960,1743892247365,-516.47407754,0.00031504,2]
[357203961,1743892247375,-521.27420829,0.00031504,2]
[357203962,1743892247384,-503.80974145,0.00031504,2]
[357203963,1743892247393,-504.38826734,0.00031504,2]
[357203964,1743892247402,-514.75698607,0.00031504,2]
[357203965,1743892247412,-500.0,0.00031504,2]
[357203966,1743892247421,-500.0,0.00031504,2]
[357203967,1743892247429,-539.51556691,0.00031504,2]
[357203968,1743892247439,-500.0,0.00031504,2]
[357203969,1743892247448,-500.0,0.00031504,2]
[357203970,1743892247458,-500.0,0.00031504,2]
[357203971,1743892247467,-537.57619233,0.00031504,2]
[357203972,1743892247477,-513.71785263,0.00031504,2]
[357203973,1743892247487,-504.2529706,0.00031504,2]
[357203974,1743892247496,-500.0,0.00031504,2]
[357203975,1743892247505,-542.59984048,0.00031504,2]
[357203976,1743892247514,-532.88741414,0.00031504,2]
[357203977,1743892247523,-525.30578907,0.00031504,2]
[357203978,1743892247533,-500.0,0.00031504,2]
[357203979,1743892247543,-513.22466243,0.00031504,2]
[357203980,1743892247552,-508.48356023,0.00031504,2]
[357203981,1743892247563,-524.74610036,0.00031504,2]
[357203982,1743892247575,-508.32025515,0.00031504,2]
[357203983,1743892247584,-500.0,0.00031504,2]
[357203984,1743892247594,-500.0,0.00031504,2]
[357203985,1743892247603,-500.0,0.00031504,2]
[357203986,1743892247614,-500.0,0.00031504,2]
[357203987,1743892247623,-500.0,0.00031504,2]
[357203988,1743892247632,-500.0,0.00031505,2]
[357203989,1743892247642,-500.0,0.00031505,2]
[357203990,1743892247651,-500.0,0.00031505,2]
[357203991,1743892247661,-500.0,0.00031505,2]
[357203992,1743892247670,-500.0,0.00031505,2]
[357203993,1743892247679,-500.0,0.00031505,2]
[357203994,1743892247690,-500.0,0.00031505,2]
[357203995,1743892247699,-500.0,0.00031505,2]
[357203996,1743892247708,-500.0,0.00031505,2]
[357203997,1743892247718,-500.0,0.00031505,2]
[357203998,1743892247727,-500.0,0.00031505,2]
[357203999,1743892247736,-500.0,0.00031505,2]
[357204000,1743892247745,-500.0,0.00031505,2]
[357204001,1743892247755,-500.0,0.00031505,2]
[357204002,1743892247764,-500.0,0.00031505,2]
[357204003,1743892247773,-500.0,0.00031505,2]
[357204004,1743892247782,-500.0,0.00031505,2]
[357204005,1743892247792,-500.0,0.00031505,2]
[357204006,1743892247801,-500.0,0.00031505,2]
[357204007,1743892247810,-500.0,0.00031505,2]
[357204008,1743892247820,-500.0,0.00031505,2]
[357204009,1743892247829,-494.1365679,0.00031505,2]
[357204010,1743892247838,-500.0,0.00031505,2]
[357204011,1743892247847,-500.0,0.00031505,2]
[357204012,1743892247857,-500.0,0.00031505,2]
[357204013,1743892247866,-500.0,0.00031505,2]
[357204014,1743892247876,-500.0,0.00031505,2]
[357204015,1743892247885,-500.0,0.00031505,2]
[357204016,1743892247894,-500.0,0.00031505,2]
[357204017,1743892247903,-500.0,0.00031505,2]
[357204018,1743892247912,-500.0,0.00031505,2]
[357204019,1743892247921,-285.10326964,0.00031505,2]
[357204020,1743892247931,-297.83366397,0.00031505,2]
[357204021,1743892247940,-500.0,0.00031505,2]
[357204022,1743892247950,-390.19292229,0.00031505,2]
[357204023,1743892247959,-269.0590216,0.00031505,2]
[357204024,1743892247968,-500.0,0.00031505,2]
[357204025,1743892247978,-500.0,0.00031505,2]
[357204026,1743892247987,-502.78583314,0.00031505,2]
[357204027,1743892247997,-576.48400846,0.00031505,2]
[357204028,1743892248006,-516.19949884,0.00031505,2]
[357204029,1743892248016,-523.24389719,0.00031505,2]
[357204030,1743892248025,-500.0,0.00031505,2]
[357204031,1743892248035,-511.73256012,0.00031505,2]
[357204032,1743892248045,-517.51374422,0.00031505,2]
[357204033,1743892248055,-513.34422479,0.00031505,2]
[357204034,1743892248065,-620.57706053,0.00031505,2]
[357204035,1743892248075,-518.40917943,0.00031505,2]
[357204036,1743892248084,-237.35455888,0.00031505,2]
[357204037,1743892248094,-500.0,0.00031505,2]
[357204038,1743892248104,-507.77432007,0.00031505,2]
[357204039,1743892248113,-500.0,0.00031505,2]
[357204040,1743892248123,-383.13372121,0.00031505,2]
[357204041,1743892248132,-500.0,0.00031505,2]
[357204042,1743892248141,-500.0,0.00031505,2]
[357204043,1743892248151,-500.0,0.00031505,2]
[357204044,1743892248161,-500.0,0.00031505,2]
[357204045,1743892248170,-500.0,0.00031505,2]
[357204046,1743892248180,-500.0,0.00031505,2]
[357204047,1743892248190,-500.0,0.00031505,2]
[357204048,1743892248200,-500.0,0.00031505,2]
[357204049,1743892248210,-500.0,0.00031505,2]
[357204050,1743892248219,-604.73341733,0.00031505,2]
[357204051,1743892248229,-500.0,0.00031505,2]
[357204052,1743892248239,-508.13696865,0.00031505,2]
[357204053,1743892248249,-532.87314997,0.00031505,2]
[357204054,1743892248260,-500.0,0.00031505,2]
[357204055,1743892248269,-500.0,0.00031505,2]
[357204056,1743892248279,-500.0,0.00031505,2]
[357204057,1743892248289,-500.0,0.00031505,2]
[357204058,1743892248298,-500.0,0.00031505,2]
[357204059,1743892248308,-500.0,0.00031505,2]
[357204060,1743892248317,-508.00522879,0.00031505,2]
[357204061,1743892248327,-500.0,0.00031505,2]
[357204062,1743892248336,-602.14942035,0.00031505,2]
[357204063,1743892248346,-500.0,0.00031505,2]
[357204064,1743892248356,-500.0,0.00031505,2]
[357204065,1743892248366,-525.45409081,0.00031505,7]
[357204066,1743892248376,-198.74454965,0.00031505,2]
[357204067,1743892248512,-504.09741878,0.00031505,2]
[357204068,1743892248522,-500.0,0.00031505,2]
[357204069,1743892248532,-199.18727,0.00031505,2]
[357204070,1743892248542,-342.41443324,0.00031505,2]
[357204071,1743892248552,-500.0,0.00031505,2]
[357204072,1743892248564,-505.68551078,0.00031505,2]
[357204073,1743892248577,-492.5084623,0.00031505,2]
[357204074,1743892248586,-500.0,0.00031505,2]
[357204075,1743892248596,-500.0,0.00031505,2]
[357204076,1743892248606,-7902.48,0.00031505,2]
[357204077,1743892248617,-500.0,0.00031505,2]
[357204078,1743892248627,-500.0,0.00031505,2]
[357204079,1743892248637,-500.0,0.00031505,2]
[357204080,1743892248654,-500.0,0.00031505,2]
[357204081,1743892248664,-564.44,0.00031505,2]